bitfinex/quotes_ETHUSD_20241123
["timestamp","ask_amount","ask_price","bid_price","bid_amount"]
[1732332888613,0.7815,3324.1,3322.2,0.00758255]
[1732332890090,0.7815,3324.1,3322.3,0.2993]
[1732332890321,0.7815,3324.1,3322.5,0.2993]
[1732332890625,0.7815,3324.6,3322.5,0.2993]
[1732332890837,0.7815,3324.6,3322.7,0.2993]
[1732332891721,0.7815,3324.6,3322.8,0.2993]
[1732332892793,0.7815,3324.6,3322.6,0.30688255]
[1732332892996,0.7815,3324.6,3322.8,0.2993]
[1732332893734,1.3315,3324.9,3322.8,0.2993]
[1732332893945,1.3315,3324.9,3322.7,0.2993]
[1732332894494,0.55,3324.7,3322.7,0.62998825]
[1732332894729,0.55,3324.7,3322.7,0.2993]
[1732332895001,0.55,3324.7,3322.6,0.30688255]
[1732332895500,0.55,3324.7,3322.6,0.6375708]
[1732332895697,0.55,3324.7,3322.6,0.30688255]
[1732332896102,0.55,3324.7,3322.6,0.00758255]
[1732332896523,0.55,3324.7,3322.6,0.30688255]
[1732332897543,0.55,3324.7,3322.6,0.00758255]
[1732332898054,0.55,3324.7,3322.6,0.30688255]
[1732332898347,0.55,3324.7,3322.8,0.2993]
[1732332898868,0.55,3324.7,3322.8,0.30688255]
[1732332899349,0.55,3324.7,3322.8,0.00758255]
[1732332899549,0.50903785,3324.8,3323.1,0.00758255]
[1732332899751,0.8309,3325.3,3323.3,0.00758255]
[1732332899949,0.73622158,3325.5,3323.7,0.00758255]
[1732332900169,0.15671216,3325.4,3323.7,0.00758255]
[1732332900334,0.8309,3325.9,3323.7,0.00758255]
[1732332900651,0.8309,3325.9,3324.0,0.00758255]
[1732332900956,0.8309,3325.9,3323.7,0.85688255]
[1732332901406,0.8309,3325.9,3324.0,0.00758255]
[1732332901612,3.5726729,3326.5,3324.0,0.00758255]
[1732332901813,3.5726729,3326.5,3324.2,0.00758255]
[1732332902109,5.0,3326.7,3323.9,0.2993]
[1732332902110,0.8309,3326.0,3323.9,0.2993]
[1732332902955,0.7852,3325.3,3322.7,0.00758255]
[1732332903162,0.7852,3325.3,3323.0,0.00758255]
[1732332903344,0.7852,3325.3,3322.1,0.3468579]
[1732332903345,0.35269729,3325.2,3322.8,0.00758255]
[1732332903651,0.35269729,3325.2,3322.7,0.00758255]
[1732332903854,3.5269729,3325.0,3322.5,0.00758255]
[1732332904113,0.40769729,3324.9,3322.5,0.00758255]
[1732332904313,0.40769729,3324.9,3322.5,0.2993]
[1732332904540,0.7852,3324.8,3322.5,0.2993]
[1732332904672,0.55,3324.7,3322.5,0.2993]
[1732332905118,0.7852,3324.8,3322.7,0.00758255]
[1732332905276,0.7852,3324.8,3322.5,0.2993]
[1732332905277,0.55,3324.7,3322.5,0.2993]
[1732332905474,0.55,3324.7,3322.4,0.00758255]
[1732332906217,0.7852,3324.8,3322.6,0.00758255]
[1732332906425,0.7852,3324.8,3322.6,0.2993]
[1732332906716,0.7852,3324.8,3323.0,0.2993]
[1732332907800,0.7852,3324.6,3322.3,0.30688255]
[1732332908005,0.55,3324.5,3322.3,0.2993]
[1732332908173,0.7852,3324.4,3322.3,0.2993]
[1732332908815,0.7852,3324.4,3322.4,0.2993]
[1732332909021,0.55,3324.3,3322.4,0.2993]
[1732332909173,0.7852,3324.2,3322.4,0.2993]
[1732332909873,0.7852,3324.2,3322.1,0.2993]
[1732332910118,0.7852,3324.2,3322.1,0.67005876]
[1732332910471,0.7852,3324.2,3322.1,0.2993]
[1732332912243,0.7852,3324.2,3322.0,0.35444045]
[1732332912929,0.7852,3324.2,3322.0,0.00758255]
[1732332913281,0.7852,3324.2,3322.2,0.00758255]
[1732332914094,0.7852,3324.2,3322.4,0.00758255]
[1732332916329,0.7852,3324.2,3322.1,0.00758255]
[1732332916507,0.7852,3324.2,3322.3,0.00758255]
[1732332916840,0.73293879,3324.7,3321.7,1.03977827]
[1732332916841,0.55,3323.9,3321.7,0.74806082]
[1732332917044,0.55,3323.9,3321.7,0.00758255]
[1732332917045,0.7979,3323.8,3321.7,0.00758255]
[1732332917837,0.7979,3323.8,3321.5,0.00758255]
[1732332917838,0.55,3323.7,3321.5,0.00758255]
[1732332918046,0.7979,3323.6,3321.5,0.00758255]
[1732332919670,0.7979,3323.6,3321.9,0.00758255]
[1732332919835,0.7979,3323.6,3322.1,0.00758255]
[1732332920041,0.7979,3323.6,3321.6,0.55]
[1732332920042,0.7979,3324.7,3322.3,0.00758255]
[1732332921356,0.55,3324.7,3322.3,0.00758255]
[1732332921869,0.7979,3324.6,3322.3,0.00758255]
[1732332922272,0.7979,3324.6,3322.3,0.30688255]
[1732332922827,0.7979,3324.6,3322.5,0.2993]
[1732332923974,0.7979,3324.6,3322.3,0.30688255]
[1732332924344,0.7979,3324.6,3322.5,0.2993]
[1732332925476,0.7979,3324.6,3322.5,0.00758255]
[1732332925682,0.7979,3324.6,3322.3,0.32939583]
[1732332925683,0.7979,3324.6,3322.7,0.30688255]
[1732332925846,0.7979,3324.6,3322.9,0.00758255]
[1732332926179,0.7979,3324.6,3322.8,0.03009255]
[1732332926180,0.7979,3324.6,3323.1,0.00758255]
[1732332929363,0.7979,3324.6,3323.3,0.00758255]
[1732332930149,2.7417729,3326.0,3323.8,0.00758255]
[1732332930150,0.7979,3325.9,3323.8,0.00758255]
[1732332930378,0.7979,3325.8,3323.8,0.00758255]
[1732332930765,0.7979,3325.8,3323.3,0.03008264]
[1732332930766,0.7979,3325.8,3324.0,0.00758255]
[1732332931908,0.7979,3325.8,3323.6,0.00758255]
[1732332932105,0.7979,3325.8,3323.4,0.55758255]
[1732332932455,0.7979,3325.8,3323.6,0.00758255]
[1732332934277,0.7979,3325.8,3323.9,0.00758255]
[1732332935598,0.7979,3325.8,3324.0,0.0810954]
[1732332935801,0.7979,3325.8,3323.6,0.00758255]
[1732332936008,0.7979,3325.8,3324.1,0.08109657]
[1732332936364,0.7979,3325.8,3323.6,0.00758255]
[1732332936614,0.7979,3325.8,3323.7,0.08108607]
[1732332936901,0.7979,3325.8,3323.6,0.00758255]
[1732332937309,0.7979,3325.8,3323.7,0.08110148]
[1732332938366,0.7822,3325.6,3323.7,0.00758255]
[1732332938901,0.7822,3325.4,3323.3,0.8493]
[1732332939061,0.7822,3325.4,3323.3,0.2993]
[1732332939666,0.7822,3325.4,3323.4,0.081104]
[1732332939860,0.7822,3325.4,3323.3,0.2993]
[1732332940106,0.7822,3325.4,3323.5,0.00758255]
[1732332941377,0.7822,3325.4,3323.4,0.55]
[1732332942044,0.7822,3325.4,3323.1,0.00758255]
[1732332942203,0.7822,3325.2,3323.1,0.00758255]
[1732332942400,0.7822,3325.2,3323.2,0.08111104]
[1732332942830,0.7822,3325.2,3323.1,0.00758255]
[1732332943031,0.7822,3325.2,3323.3,0.08114988]
[1732332943532,0.7822,3325.2,3322.9,0.2993]
[1732332943702,0.7822,3325.2,3323.4,0.08114754]
[1732332943901,0.7822,3325.2,3323.1,0.00758255]
[1732332945347,0.7822,3325.2,3323.0,0.55758255]
[1732332945568,0.7822,3325.2,3323.5,0.00758255]
[1732332945728,0.7822,3325.2,3323.1,0.00758255]
[1732332946073,0.7822,3325.2,3323.6,0.08124458]
[1732332946360,0.7822,3325.2,3323.5,0.00758255]
[1732332946572,0.7822,3325.2,3323.7,0.08124106]
[1732332946735,0.7822,3325.2,3323.5,0.00758255]
[1732332947243,0.7822,3325.2,3323.6,0.08121798]
[1732332947768,0.7822,3325.2,3323.5,0.00758255]
[1732332948268,0.7822,3325.2,3323.6,0.08121916]
[1732332948468,0.7822,3325.2,3323.5,0.00758255]
[1732332948643,0.7822,3325.2,3323.7,0.08121683]
[1732332948971,0.7822,3325.2,3323.5,0.00758255]
[1732332949527,0.7822,3325.2,3323.6,0.08122035]
[1732332950030,0.7822,3325.2,3323.5,0.00758255]
[1732332950229,0.7822,3325.2,3323.7,0.08121917]
[1732332950468,0.7822,3325.2,3323.5,0.00758255]
[1732332950665,0.7822,3325.2,3323.8,0.08121565]
[1732332950842,0.7822,3325.2,3323.5,0.00758255]
[1732332951024,0.7822,3325.2,3323.9,0.08121095]
[1732332951228,0.7822,3325.2,3323.5,0.00758255]
[1732332951425,0.7822,3325.2,3324.0,0.08120743]
[1732332951671,0.7822,3325.2,3323.5,0.00758255]
[1732332951832,0.7822,3325.2,3324.1,0.08120272]
[1732332952173,0.7822,3325.2,3323.5,0.00758255]
[1732332952331,0.7822,3325.2,3323.3,0.00758255]
[1732332952532,0.7822,3325.2,3323.6,0.08121913]
[1732332952752,0.7822,3325.2,3323.3,0.00758255]
[1732332953762,0.7822,3325.2,3323.4,0.08122617]
[1732332954854,0.7822,3325.2,3323.3,0.00758255]
[1732332955163,0.7822,3325.2,3323.5,0.08122265]
[1732332955367,0.7822,3325.2,3323.3,0.00758255]
[1732332955368,0.7822,3325.2,3323.4,0.08122617]
[1732332955684,0.7822,3325.2,3323.5,0.08122265]
[1732332956967,0.7822,3325.2,3323.3,0.00758255]
[1732332957991,0.7822,3325.2,3323.5,0.00758255]
[1732332960570,0.7822,3325.2,3323.3,0.00758255]
[1732332961906,0.8245,3325.0,3323.3,0.00758255]
[1732332966991,0.8245,3325.0,3323.6,0.00758255]
[1732332967197,0.8245,3325.0,3323.7,0.38048047]
[1732332968582,0.8245,3325.0,3324.4,0.00758255]
[1732332968785,0.8245,3326.1,3324.6,0.00758255]
[1732332968971,0.8245,3326.1,3324.8,0.00758255]
[1732332969170,0.8245,3326.1,3325.2,0.00758255]
[1732332970011,0.8245,3326.1,3324.9,0.00758255]
[1732332970198,0.8245,3326.1,3325.0,0.08091395]
[1732332970513,0.8245,3326.1,3324.9,0.00758255]
[1732332970881,0.8245,3326.1,3324.7,0.00758255]
[1732332971069,0.8245,3326.1,3325.0,0.08092702]
[1732332971422,0.8245,3326.1,3324.7,0.00758255]
[1732332971423,0.8245,3326.1,3325.1,0.0809235]
[1732332971572,0.8245,3326.1,3324.7,0.00758255]
[1732332971800,0.8245,3326.1,3324.8,0.08093406]
[1732332972199,0.8245,3326.1,3324.7,0.00758255]
[1732332972405,0.8245,3326.1,3324.8,0.08095715]
[1732332972638,0.8245,3326.1,3324.7,0.00758255]
[1732332972842,0.8245,3326.1,3324.9,0.08095482]
[1732332973027,0.8245,3326.1,3324.7,0.00758255]
[1732332973215,0.8245,3326.1,3325.0,0.0809513]
[1732332973438,0.8245,3326.1,3324.7,0.00758255]
[1732332973653,0.8245,3326.1,3325.1,0.08093353]
[1732332973867,0.8245,3326.1,3324.7,0.00758255]
[1732332974001,0.8245,3326.1,3325.2,0.08093001]
[1732332974197,0.8245,3326.1,3324.1,0.00758255]
[1732332974402,0.8245,3326.1,3324.2,0.0809832]
[1732332974811,0.8245,3326.1,3323.7,0.03007445]
[1732332975043,0.8245,3326.1,3324.0,0.00758255]
[1732332975254,3.0,3326.4,3324.0,0.00758255]
[1732332975255,0.779,3325.9,3324.0,0.00758255]
[1732332975907,0.779,3325.9,3323.8,0.00758255]
[1732332976805,0.779,3325.9,3323.6,0.00758255]
[1732332977005,2.7417729,3326.1,3323.6,0.00758255]
[1732332977006,0.779,3325.7,3323.6,0.00758255]
[1732332978047,0.779,3325.7,3323.8,0.00758255]
[1732332978560,0.779,3325.7,3324.0,0.00758255]
[1732332978913,0.779,3325.7,3324.2,0.00758255]
[1732332980610,0.779,3325.7,3323.8,0.00758255]
[1732332980956,0.779,3325.7,3323.0,0.3468579]
[1732332980957,0.779,3325.7,3323.9,0.0810402]
[1732332981387,0.779,3325.7,3323.6,0.00758255]
[1732332981698,0.779,3325.7,3323.7,0.08102362]
[1732332981896,0.779,3325.7,3323.6,0.00758255]
[1732332982103,0.779,3325.7,3323.8,0.0810201]
[1732332982303,0.779,3325.7,3323.6,0.30688255]
[1732332983183,0.779,3325.7,3323.6,0.00758255]
[1732332983410,0.779,3325.7,3323.7,0.38032481]
[1732332983720,0.779,3325.7,3323.7,0.2993]
[1732332983871,0.779,3325.7,3323.8,0.08102129]
[1732332984073,0.779,3325.7,3323.6,0.00758255]
[1732332984412,1.52424162,3325.7,3323.9,0.0810072]
[1732332984569,1.52424162,3325.7,3323.7,0.08101424]
[1732332984570,0.7793,3325.5,3323.7,0.08101424]
[1732332984769,0.7793,3325.5,3323.6,0.00758255]
[1732332984969,0.7793,3325.5,3323.8,0.08103433]
[1732332985201,0.7793,3325.5,3323.7,0.08101424]
[1732332985467,0.7793,3325.5,3323.8,0.08103433]
[1732332985671,0.7793,3325.3,3323.6,0.00758255]
[1732332988069,1.50941665,3325.3,3323.6,0.00758255]
[1732332988275,0.73011665,3325.3,3323.6,0.00758255]
[1732332988575,0.39317242,3325.4,3323.6,0.00758255]
[1732332988576,0.7793,3325.2,3323.6,0.00758255]
[1732332989028,0.7793,3325.2,3323.7,0.38032481]
[1732332991195,0.7793,3325.2,3323.8,0.55]
[1732332991440,0.7793,3325.2,3323.9,0.08105076]
[1732332993634,0.7793,3325.2,3323.6,0.00758255]
[1732332993838,0.7793,3325.2,3323.7,0.0810578]
[1732332994946,0.7793,3325.2,3323.8,0.55]
[1732332995301,0.7793,3325.2,3323.9,0.08105377]
[1732333003457,0.7793,3325.2,3323.6,0.00758255]
[1732333003624,0.7793,3325.2,3324.0,0.08102381]
[1732333003829,0.7793,3325.2,3323.6,0.00758255]
[1732333004166,0.7793,3325.2,3323.7,0.08103437]
[1732333005014,0.8327,3325.0,3323.2,0.00758255]
[1732333007555,0.8327,3325.0,3323.3,0.08112045]
[1732333007925,0.8327,3325.0,3323.2,0.00758255]
[1732333008114,0.8327,3325.0,3323.4,0.08111693]
[1732333008313,0.8327,3325.0,3323.2,0.00758255]
[1732333008611,0.8327,3325.0,3323.0,0.00758255]
[1732333008944,0.8327,3325.0,3323.1,0.08115703]
[1732333009142,2.7417729,3324.9,3323.1,0.08115703]
[1732333009419,0.8327,3324.7,3322.7,0.00758255]
[1732333009563,0.8327,3324.7,3322.9,2.74234669]
[1732333009954,0.8327,3324.7,3323.0,0.08116854]
[1732333010678,0.8327,3324.7,3322.6,0.2993]
[1732333010832,0.8327,3324.7,3323.1,0.08125616]
[1732333011166,0.8327,3324.7,3322.5,2.74234669]
[1732333011369,3.29234669,3324.6,3323.2,0.08125393]
[1732333011574,0.8327,3324.4,3322.5,2.74234669]
[1732333011780,0.8327,3324.4,3323.3,0.08125158]
[1732333011936,0.8327,3324.4,3322.5,2.74234669]
[1732333012581,0.8327,3324.4,3322.6,0.08127623]
[1732333012734,0.8306,3324.2,3322.6,0.08127623]
[1732333013979,0.8306,3324.2,3322.9,2.74234669]
[1732333014372,0.8306,3324.2,3323.0,0.08147362]
[1732333025109,0.8306,3324.2,3322.6,0.2993]
[1732333025278,0.8306,3324.2,3323.1,0.07868955]
[1732333025466,0.8306,3324.2,3322.5,2.74234669]
[1732333025813,0.8306,3324.2,3323.2,0.07868603]
[1732333025976,0.8306,3324.2,3322.5,2.74234669]
[1732333026176,1.58904505,3324.2,3323.3,0.07868956]
[1732333026377,0.7929,3324.1,3322.5,3.01658136]
[1732333026906,0.7929,3324.1,3322.6,0.07871421]
[1732333027827,1.5462518,3324.1,3322.6,0.07871421]
[1732333028103,0.7929,3324.0,3322.2,0.55]
[1732333028330,0.7929,3324.0,3322.7,0.07867868]
[1732333028480,0.7929,3324.0,3322.2,0.55]
[1732333028682,0.7929,3324.0,3322.8,0.07867038]
[1732333028882,0.7929,3324.0,3322.2,0.55]
[1732333029117,0.7929,3324.0,3322.9,0.07866686]
[1732333029283,0.7929,3324.0,3322.2,0.55]
[1732333029484,0.7929,3324.0,3323.0,0.0786681]
[1732333029727,0.7929,3324.0,3322.2,0.55]
[1732333030021,0.7929,3324.0,3323.1,0.07866458]
[1732333030325,0.7929,3324.0,3322.2,0.55]
[1732333030482,0.7929,3324.0,3323.2,0.07865987]
[1732333030689,0.7929,3324.0,3322.5,2.74234669]
[1732333030926,0.7929,3324.0,3323.3,0.07865278]
[1732333031127,0.7929,3324.0,3322.5,2.74234669]
[1732333031293,0.7929,3324.0,3323.4,0.07865461]
[1732333031497,0.7929,3324.0,3322.5,2.74234669]
[1732333031688,0.7929,3324.0,3323.5,0.07865109]
[1732333032018,0.7929,3324.0,3322.5,2.74234669]
[1732333032323,0.7929,3324.0,3322.6,0.07867921]
[1732333032731,0.7929,3324.0,3322.5,0.40601882]
[1732333032909,0.7929,3324.0,3322.5,0.1310259]
[1732333035029,0.7929,3324.0,3322.4,0.2993]
[1732333035523,0.7929,3324.0,3322.5,0.07606066]
[1732333035712,0.7879,3323.8,3322.5,0.07606066]
[1732333035938,0.7879,3323.8,3322.4,0.2993]
[1732333036151,0.7879,3323.8,3322.2,0.2993]
[1732333036356,0.7879,3323.8,3322.5,0.07612619]
[1732333036559,0.7879,3323.8,3322.2,0.2993]
[1732333036856,0.7879,3323.8,3322.6,0.07621519]
[1732333037073,0.7879,3323.8,3322.3,0.07622576]
[1732333037356,0.7879,3323.8,3322.2,0.60346467]
[1732333037570,0.7879,3323.8,3322.4,0.07622224]
[1732333037715,0.7879,3323.8,3322.2,0.60346467]
[1732333037917,0.7879,3323.8,3322.5,0.07620972]
[1732333038271,0.7879,3323.8,3322.2,0.2993]
[1732333038558,1.54725139,3323.8,3322.3,0.0762162]
[1732333038713,0.7879,3323.6,3322.2,0.2993]
[1732333038910,0.7879,3323.6,3322.4,0.07621268]
[1732333039114,0.7879,3323.6,3322.2,0.2993]
[1732333039360,0.7879,3323.6,3322.5,0.07620916]
[1732333039530,0.7879,3323.6,3322.2,0.2993]
[1732333039531,0.7879,3323.6,3322.1,2.74234669]
[1732333039742,0.7879,3323.6,3322.6,0.07620279]
[1732333040079,0.7879,3323.6,3322.7,0.07619927]
[1732333040229,0.7879,3323.6,3322.1,2.74234669]
[1732333040431,0.7879,3323.6,3322.2,0.07621688]
[1732333041060,0.7879,3323.6,3322.2,0.35807324]
[1732333041269,0.7879,3323.6,3322.9,2.74234669]
[1732333041477,0.7879,3323.6,3323.0,0.0761977]
[1732333051571,0.7879,3323.6,3323.0,0.08378025]
[1732333052283,0.7879,3323.6,3323.1,0.2993]
[1732333052457,0.7879,3323.6,3323.1,0.37534766]
[1732333053101,0.7879,3323.6,3323.1,0.68787535]
[1732333053399,0.01,3325.9,3323.1,0.68787535]
[1732333053400,0.7879,3324.7,3323.3,2.74234669]
[1732333053777,0.7879,3324.7,3323.4,0.07603359]
[1732333054263,0.7879,3324.7,3323.5,0.07598438]
[1732333054469,0.7879,3324.5,3322.7,2.74234669]
[1732333054759,0.7879,3324.5,3322.8,0.07093308]
[1732333055365,0.7879,3324.5,3322.9,0.2993]
[1732333056321,0.7879,3324.5,3323.1,2.74234669]
[1732333056811,0.7879,3324.5,3323.6,0.2993]
[1732333057106,0.7879,3324.5,3323.7,0.37024613]
[1732333060420,0.7879,3324.5,3324.0,0.2993]
[1732333060625,5.0,3326.2,3325.0,8.0621]
[1732333060626,7.74234669,3326.2,3325.0,8.0621]
[1732333060795,7.74234669,3326.2,3324.3,3.04164669]
[1732333060999,0.77423467,3326.1,3325.1,0.07079796]
[1732333061199,0.77423467,3326.1,3324.3,0.2993]
[1732333061417,0.77423467,3326.1,3324.5,3.04164669]
[1732333061716,5.0,3326.8,3325.0,0.55]
[1732333061919,0.5,3326.7,3325.1,0.2993]
[1732333062272,0.5,3326.7,3325.2,0.55]
[1732333062596,2.74234669,3327.0,3325.3,0.07077558]
[1732333062934,3.0,3326.9,3325.4,0.07077676]
[1732333063086,3.56480467,3326.9,3324.7,0.55]
[1732333063291,3.56480467,3326.9,3324.9,0.55]
[1732333063606,0.7574,3326.7,3324.9,0.55]
[1732333063822,0.7574,3326.7,3325.0,0.06843504]
[1732333065397,0.7574,3326.7,3325.1,0.55]
[1732333065736,0.7574,3326.7,3325.3,0.55]
[1732333065941,0.7574,3326.7,3325.1,0.55]
[1732333066163,0.7574,3326.7,3325.5,0.55]
[1732333066567,0.7574,3326.7,3325.7,0.55]
[1732333066853,0.7574,3326.7,3325.6,0.06841275]
[1732333067027,0.7574,3326.7,3325.8,0.06816048]
[1732333067207,0.7574,3326.7,3325.7,0.068164]
[1732333067410,0.7574,3326.7,3325.0,2.74992924]
[1732333067611,0.7574,3326.7,3325.8,0.06816048]
[1732333067858,0.7574,3326.7,3325.0,2.74992924]
[1732333068153,0.7574,3326.7,3325.1,0.0681851]
[1732333068977,0.7574,3326.7,3325.2,0.55]
[1732333069128,0.7574,3326.7,3325.2,0.61818158]
[1732333069792,0.7574,3326.7,3325.5,3.55]
[1732333070352,0.7574,3326.7,3325.6,0.06816988]
[1732333070853,0.7574,3326.7,3325.7,0.55]
[1732333071261,0.7574,3326.7,3325.8,0.06818513]
[1732333071426,0.7574,3326.7,3325.9,0.55]
[1732333071628,0.7574,3326.7,3324.7,0.00758255]
[1732333071858,0.7574,3326.7,3326.0,0.06361899]
[1732333072151,0.7574,3326.7,3324.7,2.74992924]
[1732333072337,0.7574,3326.7,3326.1,0.06359319]
[1732333072557,0.7574,3326.7,3324.7,0.30678255]
[1732333072842,0.7574,3326.7,3326.2,0.06358968]
[1732333073046,0.7574,3326.7,3324.7,3.30678255]
[1732333073352,0.7574,3326.7,3324.9,0.2992]
[1732333073731,0.7574,3326.7,3325.0,0.36283306]
[1732333074338,0.7574,3326.7,3325.1,0.55]
[1732333074533,0.7574,3326.7,3325.1,0.61362954]
[1732333075476,0.7574,3326.7,3325.4,0.2992]
[1732333075973,0.7574,3326.7,3325.6,0.8492]
[1732333076477,0.7574,3326.7,3325.7,0.06360726]
[1732333076777,0.7574,3326.7,3325.8,0.55]
[1732333077191,0.7574,3326.7,3325.9,0.06360022]
[1732333077333,0.7574,3326.7,3325.5,3.8492]
[1732333077530,0.7574,3326.7,3326.1,0.55]
[1732333078032,0.7574,3326.7,3326.2,0.06355758]
[1732333078232,0.7574,3326.7,3326.3,0.55]
[1732333078430,0.7574,3326.7,3325.5,3.2992]
[1732333078669,0.7574,3326.7,3326.4,0.06143315]
[1732333078868,0.7574,3326.7,3325.5,3.2992]
[1732333079073,0.7574,3326.7,3325.6,0.90335467]
[1732333079283,0.7574,3326.7,3325.6,0.96481594]
[1732333079650,0.7574,3326.7,3325.6,0.36066127]
[1732333080773,0.7574,3326.7,3325.7,0.55]
[1732333080982,0.7574,3326.7,3325.7,0.61125112]
[1732333082307,0.7574,3326.7,3325.9,0.55]
[1732333082853,0.7574,3326.7,3326.1,0.55]
[1732333083164,0.7574,3326.7,3326.3,0.55]
[1732333083492,0.7574,3326.7,3326.2,0.0612152]
[1732333083652,0.7574,3326.7,3326.4,0.06120223]
[1732333083851,0.7574,3326.7,3326.3,0.06120692]
[1732333084166,0.7574,3326.7,3325.5,0.2992]
[1732333084379,0.7574,3326.7,3326.4,0.06121054]
[1732333084551,0.7574,3326.7,3325.5,0.2992]
[1732333084904,0.7574,3326.7,3325.5,0.30678255]
[1732333085115,0.7574,3326.7,3325.6,0.06123153]
[1732333085408,0.7574,3326.7,3325.7,0.2992]
[1732333085905,0.7574,3326.7,3325.4,3.04154669]
[1732333086200,0.7574,3326.7,3325.8,0.05918368]
[1732333086409,0.7574,3326.7,3325.1,0.55]
[1732333086756,0.7574,3326.7,3325.2,0.05920349]
[1732333086962,0.7574,3326.7,3325.2,0.35840349]
[1732333087302,0.7574,3326.7,3325.2,0.05920349]
[1732333092288,0.7574,3326.7,3325.1,0.2992]
[1732333092289,3.0,3326.6,3325.1,0.2992]
[1732333092535,0.8115,3326.4,3325.2,0.05928483]
[1732333093424,0.8115,3326.4,3324.8,3.04912924]
[1732333093625,0.8115,3326.4,3325.3,0.05928132]
[1732333094074,0.8115,3326.4,3324.8,3.04912924]
[1732333094238,0.8115,3326.4,3325.4,0.0592778]
[1732333094558,0.8115,3326.4,3325.5,0.05927898]
[1732333094767,0.8115,3326.4,3324.9,0.2992]
[1732333094923,0.8115,3326.4,3325.6,0.05927546]
[1732333095122,0.8115,3326.4,3324.9,0.2992]
[1732333095332,0.8115,3326.4,3325.7,0.05927195]
[1732333095622,0.8115,3326.4,3324.5,0.2992]
[1732333096052,0.8115,3326.4,3324.7,0.00758255]
[1732333096588,0.8115,3326.4,3324.8,0.05931424]
[1732333097554,0.8115,3326.4,3324.5,0.30678255]
[1732333097763,0.8115,3326.4,3324.9,0.05932141]
[1732333097965,0.8115,3326.4,3324.5,0.30678255]
[1732333098155,0.8115,3326.4,3325.0,0.0593132]
[1732333098355,0.8115,3326.4,3324.5,0.55758255]
[1732333098679,0.8115,3326.4,3325.1,0.05930968]
[1732333098978,0.8115,3326.4,3325.2,0.05930617]
[1732333099179,0.8115,3326.4,3324.5,0.55758255]
[1732333099379,0.8115,3326.4,3325.3,0.05930265]
[1732333099541,0.8115,3326.4,3324.5,0.55758255]
[1732333099917,0.8115,3326.4,3325.4,0.05929913]
[1732333100037,0.8115,3326.4,3324.5,0.55758255]
[1732333100242,0.8115,3326.4,3324.5,1.20991292]
[1732333100576,0.8115,3326.4,3324.7,0.55]
[1732333100967,0.8115,3326.4,3324.8,0.05932142]
[1732333102083,0.8115,3326.4,3324.8,0.06690397]
[1732333104645,0.8115,3326.4,3324.8,0.05932142]
[1732333105764,0.8115,3326.4,3324.9,0.00758255]
[1732333106181,0.8115,3326.4,3324.9,0.06696106]
[1732333106876,0.8115,3326.4,3324.9,0.05937851]
[1732333112904,0.8115,3326.4,3324.9,0.41597103]
[1732333113101,0.8115,3326.4,3325.1,2.74234669]
[1732333113359,0.8115,3326.4,3325.3,0.00758255]
[1732333113515,0.8115,3326.4,3325.5,2.74992924]
[1732333113901,0.8115,3326.4,3325.6,0.05937464]
[1732333117922,0.8115,3326.4,3325.6,0.40029285]
[1732333118255,0.8325,3326.9,3326.2,0.00758255]
[1732333118418,2.74234669,3328.5,3326.5,2.74234669]
[1732333118638,2.74234669,3328.2,3326.5,0.2992]
[1732333118839,2.74234669,3328.2,3326.6,0.0592472]
[1732333119040,0.27423467,3328.1,3326.2,0.00758255]
[1732333119255,0.27423467,3328.1,3326.3,0.05924676]
[1732333119611,3.27423467,3328.1,3326.3,0.05924676]
[1732333119810,0.60165814,3328.0,3326.3,0.05924676]
[1732333120006,0.60165814,3328.0,3326.4,0.00758255]
[1732333120211,0.60165814,3328.0,3326.5,0.0591482]
[1732333121457,0.8325,3327.9,3326.5,0.0591482]
[1732333126412,0.8325,3327.9,3326.6,0.00758255]
[1732333126658,0.8325,3327.9,3326.7,0.05888571]
[1732333128562,0.8325,3327.9,3326.8,0.00758255]
[1732333128945,0.8325,3327.9,3326.9,0.05887869]
[1732333131925,0.8325,3327.9,3326.7,2.74234669]
[1732333132126,0.8325,3327.9,3327.0,0.05887398]
[1732333132349,0.8325,3327.9,3326.7,3.09385961]
[1732333132350,0.8325,3327.9,3326.8,0.05888339]
[1732333132662,0.8325,3327.9,3326.9,0.05887987]
[1732333132873,0.8325,3327.9,3326.9,0.31527395]
[1732333133073,0.8325,3327.9,3327.0,0.05886408]
[1732333136531,0.8325,3327.9,3326.8,0.00758255]
[1732333136732,0.8325,3327.9,3327.1,0.05879808]
[1732333136967,0.8325,3327.9,3326.9,0.05880511]
[1732333137173,0.8325,3327.9,3327.2,0.05879574]
[1732333137332,0.8325,3327.9,3326.8,0.00758255]
[1732333137774,0.8325,3327.9,3326.9,0.05880627]
[1732333140460,0.8325,3327.9,3326.5,0.2992]
[1732333140661,0.8325,3327.9,3326.6,0.06639817]
[1732333141251,0.8325,3327.9,3326.6,0.05881562]
[1732333141661,0.8325,3327.9,3326.2,0.83698255]
[1732333141866,0.8325,3327.9,3326.4,0.00758255]
[1732333142061,0.8325,3327.9,3326.5,0.05882939]
[1732333142246,0.8254,3327.7,3326.2,0.83698255]
[1732333142475,0.8254,3327.7,3326.3,0.05883761]
[1732333142642,0.8254,3327.7,3326.5,0.00758255]
[1732333142838,0.8254,3327.7,3326.6,0.05882707]
[1732333144785,0.8254,3327.7,3326.5,1.29571799]
[1732333144984,0.8254,3327.7,3326.7,0.05880826]
[1732333145141,0.8254,3327.7,3326.6,0.05881178]
[1732333145342,0.8254,3327.7,3326.8,0.05880475]
[1732333145680,0.8254,3327.7,3326.2,0.83698255]
[1732333145681,0.8254,3327.7,3326.9,0.05880124]
[1732333145882,0.8254,3327.5,3326.3,0.00758255]
[1732333146044,0.8254,3327.3,3326.4,0.05887902]
[1732333147139,0.8254,3327.3,3326.2,1.29571799]
[1732333147540,0.8254,3327.3,3326.3,0.0664532]
[1732333147778,0.8254,3327.3,3326.3,0.05887065]
[1732333148555,0.8254,3327.0,3326.3,0.05887065]